Workbook

Sheet Main
L1: Population Normal Distribution Average ball weight 250.07 and SD = 4.37 | AC1: Understanding meaning of Center Limit Theorem | AN1: Download from http://aksharait.com
B2: This experiment explains the central limit theorem. Each event samples 24 balls from population having characteristics as explained previously . Standard Deviation of this sample as expected is that of population. However standard deviations of sample means get updated each time and after sufficient events it approchases to σ/√24 i.e. 0.89. This is the Central Limit Theorem (CLT). It holds good even if population probability distribution function is other than normal.
S3: INDEX | V3: Max | Z3: 262.43
V4: Avg | Z4: 250.07
V5: Min | Z5: 238.6 | AN5: Sample
AN12: Sample Size | AS12: 24
AN13: σ for population | AS13: 4.37
B14: Repeat Experiment | AN14: σ for sample | AS14: 4.37
AN15: for N events with N > 30
AN16: σ for means = σ/√24
B17: Break | AN17: =AS13/SQRT(AS12) -> 0.8920225147
B25: This Event Number (not trials) | H25: 90 | K25: Average of this event | Q25: 249.5033333 | T25: Standard Deviation of this sample | Z25: 3.685183924 | AC25: Standard Deviation of averages ( of 24 balls sample) up till now | AI25: 0.8756069681

Sheet PopulationData
A1: 0 | B1: μ - xi | C1: 8*(μ - xi) To color the balls in scale of " 100
A2: 249.84 | B2: =250-A2 -> 0.16 | C2: =B2*8 -> 1.28
A3: 249.37 | B3: =250-A3 -> 0.63 | C3: =B3*8 -> 5.04
A4: 253.1 | B4: -3.1 | C4: -24.8
A5: 248.93 | B5: 1.07 | C5: 8.56
A6: 252.68 | B6: -2.68 | C6: -21.44
A7: 253.17 | B7: -3.17 | C7: -25.36
A8: 245.8 | B8: 4.2 | C8: 33.6
A9: 249.97 | B9: 0.03 | C9: 0.24
A10: 249.76 | B10: 0.24 | C10: 1.92
A11: 249.26 | B11: 0.74 | C11: 5.92
A12: 250.05 | B12: -0.05 | C12: -0.4
A13: 250.72 | B13: -0.72 | C13: -5.76
A14: 243.45 | B14: 6.55 | C14: 52.4
A15: 249.82 | B15: 0.18 | C15: 1.44
A16: 255.29 | B16: -5.29 | C16: -42.32
A17: 246.67 | B17: 3.33 | C17: 26.64
A18: 252.89 | B18: -2.89 | C18: -23.12
A19: 248.2 | B19: 1.8 | C19: 14.4
A20: 245.39 | B20: 4.61 | C20: 36.88
A21: 253.09 | B21: -3.09 | C21: -24.72
A22: 247.7 | B22: 2.3 | C22: 18.4
A23: 247.2 | B23: 2.8 | C23: 22.4
A24: 249.45 | B24: 0.55 | C24: 4.4
A25: 252.25 | B25: -2.25 | C25: -18
A26: 253.34 | B26: -3.34 | C26: -26.72
A27: 246.22 | B27: 3.78 | C27: 30.24
A28: 251.96 | B28: -1.96 | C28: -15.68
A29: 247.46 | B29: 2.54 | C29: 20.32
A30: 253.76 | B30: -3.76 | C30: -30.08
A31: 244.34 | B31: 5.66 | C31: 45.28
A32: 247.58 | B32: 2.42 | C32: 19.36
A33: 251.33 | B33: -1.33 | C33: -10.64
A34: 246.19 | B34: 3.81 | C34: 30.48
A35: 253.76 | B35: -3.76 | C35: -30.08
A36: 247.2 | B36: 2.8 | C36: 22.4
A37: 255.99 | B37: -5.99 | C37: -47.92
A38: 249.99 | B38: 0.01 | C38: 0.08
A39: 248.8 | B39: 1.2 | C39: 9.6
A40: 249.44 | B40: 0.56 | C40: 4.48
A41: 253.81 | B41: -3.81 | C41: -30.48
A42: 255.14 | B42: -5.14 | C42: -41.12
A43: 244.2 | B43: 5.8 | C43: 46.4
A44: 250.25 | B44: -0.25 | C44: -2
A45: 245.17 | B45: 4.83 | C45: 38.64
A46: 250.69 | B46: -0.69 | C46: -5.52
A47: 250.06 | B47: -0.06 | C47: -0.48
A48: 246.22 | B48: 3.78 | C48: 30.24
A49: 249.65 | B49: 0.35 | C49: 2.8
A50: 249.07 | B50: 0.93 | C50: 7.44
A51: 248.13 | B51: 1.87 | C51: 14.96
A52: 240.85 | B52: 9.15 | C52: 73.2
A53: 245.51 | B53: 4.49 | C53: 35.92
A54: 260.11 | B54: -10.11 | C54: -80.88
A55: 247.18 | B55: 2.82 | C55: 22.56
A56: 247.63 | B56: 2.37 | C56: 18.96
A57: 251.82 | B57: -1.82 | C57: -14.56
A58: 250.63 | B58: -0.63 | C58: -5.04
A59: 246.81 | B59: 3.19 | C59: 25.52
A60: 250.13 | B60: -0.13 | C60: -1.04
A61: 251.98 | B61: -1.98 | C61: -15.84
A62: 248.5 | B62: 1.5 | C62: 12
A63: 252.16 | B63: -2.16 | C63: -17.28
A64: 257.22 | B64: -7.22 | C64: -57.76
A65: 255.37 | B65: -5.37 | C65: -42.96
A66: 246.91 | B66: 3.09 | C66: 24.72
A67: 250.38 | B67: =250-A67 -> -0.38 | C67: =B67*8 -> -3.04
A68: 253.38 | B68: -3.38 | C68: -27.04
A69: 249.8 | B69: 0.2 | C69: 1.6
A70: 260.21 | B70: -10.21 | C70: -81.68
A71: 248.36 | B71: 1.64 | C71: 13.12
A72: 245.83 | B72: 4.17 | C72: 33.36
A73: 252.47 | B73: -2.47 | C73: -19.76
A74: 254.57 | B74: -4.57 | C74: -36.56
A75: 247.6 | B75: 2.4 | C75: 19.2
A76: 250.71 | B76: -0.71 | C76: -5.68
A77: 243.55 | B77: 6.45 | C77: 51.6
A78: 246.54 | B78: 3.46 | C78: 27.68
A79: 248.28 | B79: 1.72 | C79: 13.76
A80: 239.76 | B80: 10.24 | C80: 81.92
A81: 256.84 | B81: -6.84 | C81: -54.72
A82: 258.8 | B82: -8.8 | C82: -70.4
A83: 250.93 | B83: -0.93 | C83: -7.44
A84: 248.23 | B84: 1.77 | C84: 14.16
A85: 243.58 | B85: 6.42 | C85: 51.36
A86: 256.35 | B86: -6.35 | C86: -50.8
A87: 252.04 | B87: -2.04 | C87: -16.32
A88: 251.28 | B88: -1.28 | C88: -10.24
A89: 250.66 | B89: -0.66 | C89: -5.28
A90: 258.9 | B90: -8.9 | C90: -71.2
A91: 252.68 | B91: -2.68 | C91: -21.44
A92: 248.28 | B92: 1.72 | C92: 13.76
A93: 246.74 | B93: 3.26 | C93: 26.08
A94: 246.44 | B94: 3.56 | C94: 28.48
A95: 247.43 | B95: 2.57 | C95: 20.56
A96: 243.8 | B96: 6.2 | C96: 49.6
A97: 250.69 | B97: -0.69 | C97: -5.52
A98: 249.1 | B98: 0.9 | C98: 7.2
A99: 253.2 | B99: -3.2 | C99: -25.6
A100: 248.11 | B100: 1.89 | C100: 15.12
A101: 251.45 | B101: -1.45 | C101: -11.6
A102: 256 | B102: -6 | C102: -48
A103: 249.86 | B103: 0.14 | C103: 1.12
A104: 247.8 | B104: 2.2 | C104: 17.6
A105: 255.83 | B105: -5.83 | C105: -46.64
A106: 241.93 | B106: 8.07 | C106: 64.56
A107: 245.52 | B107: 4.48 | C107: 35.84
A108: 247.45 | B108: 2.55 | C108: 20.4
A109: 250.37 | B109: -0.37 | C109: -2.96
A110: 253.22 | B110: -3.22 | C110: -25.76
A111: 245.53 | B111: 4.47 | C111: 35.76
A112: 242.16 | B112: 7.84 | C112: 62.72
A113: 256.59 | B113: -6.59 | C113: -52.72
A114: 248.34 | B114: 1.66 | C114: 13.28
A115: 253.11 | B115: -3.11 | C115: -24.88
A116: 249.52 | B116: 0.48 | C116: 3.84
A117: 258 | B117: -8 | C117: -64
A118: 255.72 | B118: -5.72 | C118: -45.76
A119: 245.35 | B119: 4.65 | C119: 37.2
A120: 244.57 | B120: 5.43 | C120: 43.44
A121: 252.44 | B121: -2.44 | C121: -19.52
A122: 243.76 | B122: 6.24 | C122: 49.92
A123: 258.32 | B123: -8.32 | C123: -66.56
A124: 244.44 | B124: 5.56 | C124: 44.48
A125: 252.87 | B125: -2.87 | C125: -22.96
A126: 254.91 | B126: -4.91 | C126: -39.28
A127: 252.93 | B127: -2.93 | C127: -23.44
A128: 251.9 | B128: -1.9 | C128: -15.2
A129: 249.26 | B129: 0.74 | C129: 5.92
A130: 251.49 | B130: -1.49 | C130: -11.92
A131: 243.48 | B131: =250-A131 -> 6.52 | C131: =B131*8 -> 52.16
A132: 241.87 | B132: 8.13 | C132: 65.04
A133: 251.48 | B133: -1.48 | C133: -11.84
A134: 252.61 | B134: -2.61 | C134: -20.88
A135: 240.7 | B135: 9.3 | C135: 74.4
A136: 245.76 | B136: 4.24 | C136: 33.92
A137: 254.18 | B137: -4.18 | C137: -33.44
A138: 246.06 | B138: 3.94 | C138: 31.52
A139: 249.06 | B139: 0.94 | C139: 7.52
A140: 247.28 | B140: 2.72 | C140: 21.76
A141: 241.59 | B141: 8.41 | C141: 67.28
A142: 246.31 | B142: 3.69 | C142: 29.52
A143: 248.8 | B143: 1.2 | C143: 9.6
A144: 251.99 | B144: -1.99 | C144: -15.92
A145: 256.41 | B145: -6.41 | C145: -51.28
A146: 257.64 | B146: -7.64 | C146: -61.12
A147: 252.64 | B147: -2.64 | C147: -21.12
A148: 255.33 | B148: -5.33 | C148: -42.64
A149: 262.43 | B149: -12.43 | C149: -99.44
A150: 253.05 | B150: -3.05 | C150: -24.4
A151: 249.42 | B151: 0.58 | C151: 4.64
A152: 254.79 | B152: -4.79 | C152: -38.32
A153: 247.62 | B153: 2.38 | C153: 19.04
A154: 249.45 | B154: 0.55 | C154: 4.4
A155: 252.62 | B155: -2.62 | C155: -20.96
A156: 256.73 | B156: -6.73 | C156: -53.84
A157: 249.88 | B157: 0.12 | C157: 0.96
A158: 252.26 | B158: -2.26 | C158: -18.08
A159: 255.98 | B159: -5.98 | C159: -47.84
A160: 249.98 | B160: 0.02 | C160: 0.16
A161: 246.37 | B161: 3.63 | C161: 29.04
A162: 238.6 | B162: 11.4 | C162: 91.2
A163: 252.62 | B163: -2.62 | C163: -20.96
A164: 256.91 | B164: -6.91 | C164: -55.28
A165: 247.65 | B165: 2.35 | C165: 18.8
A166: 251.67 | B166: -1.67 | C166: -13.36
A167: 253.04 | B167: -3.04 | C167: -24.32
A168: 249.12 | B168: 0.88 | C168: 7.04
A169: 247.27 | B169: 2.73 | C169: 21.84
A170: 249.3 | B170: 0.7 | C170: 5.6
A171: 246.63 | B171: 3.37 | C171: 26.96
A172: 244.11 | B172: 5.89 | C172: 47.12
A173: 248.64 | B173: 1.36 | C173: 10.88
A174: 255.92 | B174: -5.92 | C174: -47.36
A175: 249.77 | B175: 0.23 | C175: 1.84
A176: 246.94 | B176: 3.06 | C176: 24.48
A177: 249.73 | B177: 0.27 | C177: 2.16
A178: 249.61 | B178: 0.39 | C178: 3.12
A179: 243.07 | B179: 6.93 | C179: 55.44
A180: 253.54 | B180: -3.54 | C180: -28.32
A181: 246.47 | B181: 3.53 | C181: 28.24
A182: 247.6 | B182: 2.4 | C182: 19.2
A183: 250.3 | B183: -0.3 | C183: -2.4
A184: 248.12 | B184: 1.88 | C184: 15.04
A185: 243.68 | B185: 6.32 | C185: 50.56
A186: 242.3 | B186: 7.7 | C186: 61.6
A187: 252.87 | B187: -2.87 | C187: -22.96
A188: 248.35 | B188: 1.65 | C188: 13.2
A189: 252.61 | B189: -2.61 | C189: -20.88
A190: 249.45 | B190: 0.55 | C190: 4.4
A191: 252.31 | B191: -2.31 | C191: -18.48
A192: 245.82 | B192: 4.18 | C192: 33.44
A193: 255.45 | B193: -5.45 | C193: -43.6
A194: 247.32 | B194: 2.68 | C194: 21.44
A195: 251.96 | B195: =250-A195 -> -1.96 | C195: =B195*8 -> -15.68
A196: 253.54 | B196: -3.54 | C196: -28.32
A197: 244.03 | B197: 5.97 | C197: 47.76
A198: 258.6 | B198: -8.6 | C198: -68.8
A199: 257.59 | B199: -7.59 | C199: -60.72
A200: 249.09 | B200: 0.91 | C200: 7.28
... 189 more rows

Sheet Sheet1
A1: 0
A2: 0.4778872892
A3: 0.3920440717
A4: 0.4003328844
A5: 0.4591351807
A6: 0.4794652846
A7: 0.487364434
A8: 0.4561254862
A9: 0.6070978262
A10: 0.6475385358
A11: 0.6224971003
A12: 0.6203035008
A13: 0.5962155294
A14: 0.7004867318
A15: 0.677335918
A16: 0.6864071002
A17: 0.6817323077
A18: 0.8135389494
A19: 0.825184481
A20: 0.8810592445
A21: 0.8807421704
A22: 0.8707543475
A23: 0.8517121026
A24: 0.8579957566
A25: 0.8464838616
A26: 0.8513478615
A27: 0.8882365341
A28: 0.8815498685
A29: 0.8662192939
A30: 0.8707963135
A31: 0.8567306999
A32: 0.8472211269
A33: 0.865270192
A34: 0.868210301
A35: 0.8576067451
A36: 0.8456474824
A37: 0.8350346404
A38: 0.8283611646
A39: 0.8248460258
A40: 0.8721489892
A41: 0.8628671762
A42: 0.8716396437
A43: 0.8616609052
A44: 0.8619681644
A45: 0.8588470646
A46: 0.8511154809
A47: 0.8420136907
A48: 0.8913832173
A49: 0.8832363448
A50: 0.8745795618
A51: 0.914831696
A52: 0.9178325699
A53: 0.9525388538
A54: 0.9451969438
A55: 0.9381892685
A56: 0.9356295898
A57: 0.9426313222
A58: 0.9675905257
A59: 0.9594157477
A60: 0.951556261
A61: 0.9441829416
A62: 0.9471069149
A63: 0.9400080209
A64: 0.9461683123
A65: 0.9389695983
A66: 0.9350447277
A67: 0.9384123966
A68: 0.9346449684
A69: 0.9282944003
A70: 0.933241675
A71: 0.9320891785
A72: 0.9255940133
A73: 0.9310602104
A74: 0.9290976972
A75: 0.9274507809
A76: 0.9224107228
A77: 0.9221049399
A78: 0.9196963747
A79: 0.9199376945
A80: 0.9159091161
A81: 0.914513529
A82: 0.9127041252
A83: 0.9078610727
A84: 0.910133265
A85: 0.9193777954
A86: 0.9147307141
A87: 0.9124570768
A88: 0.9082552922
A89: 0.9301100237
A90: 0.926015035
A91: 0.9233597856
A92: 0.9183711771
A93: 0.9268086454
A94: 0.9296144234
A95: 0.9270339501
A96: 0.9334882927
A97: 0.9337457074
A98: 0.9289729624
A99: 0.9248463698
A100: 0.9202190246
A101: 0.9179032194
A102: 0.9134016557
A103: 0.9118654341
A104: 0.9111122296
A105: 0.9070117209
A106: 0.9179353186
A107: 0.9175375003
A108: 0.9144931359
A109: 0.9103166391
A110: 0.9066662841
A111: 0.905083434
A112: 0.9010399132
A113: 0.8997532414
A114: 0.8971125974
A115: 0.8932036288
A116: 0.8897309094
A117: 0.8868718182
A118: 0.8831061244
A119: 0.8816405215
A120: 0.8787625575
A121: 0.8768694773
A122: 0.8931670212
A123: 0.8895342429
A124: 0.8861511875
A125: 0.8835317167
A126: 0.8833556262
A127: 0.880066688
A128: 0.8768621162
A129: 0.8754554382
A130: 0.8751403229
A131: 0.871796545
A132: 0.8685019656
A133: 0.8659617426
A134: 0.8628492874
A135: 0.8643336677
A136: 0.8625236365
A137: 0.8638290442
A138: 0.8607904137
A139: 0.858399046
A140: 0.8575425734
A141: 0.8601751775
A142: 0.857149948
A143: 0.8555838587
A144: 0.8532011742
A145: 0.8610626738
A146: 0.8615082466
A147: 0.8590215121
A148: 0.8668941327
A149: 0.8643539192
A150: 0.8663257414
A151: 0.8643305453
A152: 0.8795414659
A153: 0.8867832209
A154: 0.8859493978
A155: 0.8857944207
A156: 0.8968393758
A157: 0.8945681789
A158: 0.8918588714
A159: 0.8941325442
A160: 0.8935563089
A161: 0.90206507
A162: 0.8992824269
A163: 0.9014608728
A164: 0.9008895001
A165: 0.8982005072
A166: 0.8990540419
A167: 0.9022476196
A168: 0.9051939824
A169: 0.9038283431
A170: 0.901850811
A171: 0.904842342
A172: 0.9024363866
A173: 0.9019255821
A174: 0.8995268447
A175: 0.8975870647
A176: 0.8950335541
A177: 0.8956292493
A178: 0.8942993403
A179: 0.8924646949
A180: 0.8923199353
A181: 0.8914032499
A182: 0.8901084111
A183: 0.8897650091
A184: 0.8873731564
A185: 0.885005545
A186: 0.8944711674
A187: 0.8922728401
A188: 0.8904958828
A189: 0.8887948093
A190: 0.8868271502
A191: 0.8845184437
A192: 0.8838684474
A193: 0.8816077351
A194: 0.8795573883
A195: 0.8786068367
A196: 0.88235369
A197: 0.8854595789
A198: 0.8832618641
A199: 0.8863595702
A200: 0.8854728494
... 300 more rows

Sheet Sheet2
